Cogmind - Beta 14 @@@ ROGUE MODE // 2024.09.22 @ 21:10:24 Player: cd-rom Result: Destroyed by S-10 Pest with Light Assault Rifle Performance ------------- Evolutions (1) 500 Regions Visited (2) 400 Robots Destroyed (24) 120 Value Destroyed (534) 534 Prototype IDs (0) 0 Alien Tech Used (0) 0 Bonus (0) 0 TOTAL SCORE: 1554 Bonus ------- None Cogmind --------- Core Integrity 0/400 Matter 153/300 Energy 100/100 System Corruption 0% Temperature Cool (0) Movement Core (700) Ox13 Location -9/Materials Parts ------- > --- POWER (2) -------- (None) > --- PROPULSION (2) --- (None) > --- UTILITY (3) ------ High-capacity Storage Unit Improved Targeting Computer > --- WEAPON (2) ------- (None) > --- INVENTORY (20) --- Cooling System Cooling System Sensor Array Improved Targeting Computer Improved Targeting Computer Improved Targeting Computer ECM Suite Medium Armor Plating Medium Armor Plating Medium Armor Plating Improved Light Armor Plating Reactive Plating Hacking Suite Hacking Suite Hacking Suite Hacking Suite Peak State ------------ > --- POWER ------------ Ion Engine > --- PROPULSION ------- Light Treads Light Treads > --- UTILITY ---------- Heat Sink High-capacity Storage Unit Improved Targeting Computer > --- WEAPON ----------- Assault Rifle Grenade Launcher > --- INVENTORY -------- Cooling System Cooling System Sensor Array Improved Targeting Computer Improved Targeting Computer Improved Targeting Computer ECM Suite Medium Armor Plating Medium Armor Plating Medium Armor Plating Medium Armor Plating Improved Light Armor Plating Reactive Plating Hacking Suite Hacking Suite Hacking Suite Hacking Suite Medium Laser Assault Rifle Grenade Launcher [Rating: 13] Favorites ----------- Power Ion Engine Engine Ion Engine Propulsion Light Treads Treads Light Treads Utility Heat Sink Device Heat Sink Storage High-capacity Storage Unit Processor Improved Targeting Computer Protection Medium Armor Plating Weapon Assault Rifle Energy Gun Medium Laser Ballistic Gun Assault Rifle Launcher Grenade Launcher Build | -11 -10 -9 ------- Run | Yrd Mat Mat Slots Evolved 2 | . . 2 Power 1 | . . 1 Propulsion . | . . . Utility 1 | . . 1 Weapon . | . . . Parts Attached 15 | 6 3 6 Power 1 | 1 . . Engine 1 | 1 . . Core . | . . . Reactor . | . . . Propulsion 3 | 2 . 1 Treads 3 | 2 . 1 Leg . | . . . Wheel . | . . . Hover . | . . . Flight . | . . . Utility 5 | 1 2 2 Device 1 | . 1 . Storage 2 | 1 1 . Processor 1 | . . 1 Hackware . | . . . Protection 1 | . . 1 Artifact . | . . . Weapon 6 | 2 1 3 Energy Gun 2 | 1 . 1 Energy Cannon . | . . . Ballistic Gun 2 | 1 . 1 Ballistic Cannon . | . . . Launcher 2 | . 1 1 Special Weapon . | . . . Impact Weapon . | . . . Slashing Weapon . | . . . Piercing Weapon . | . . . Special Melee Weapon . | . . . Unidentified Prototypes . | . . . Parts Lost 11 | . . 11 Power 1 | . . 1 Propulsion 3 | . . 3 Utility 2 | . . 2 Weapon 5 | . . 5 Highest Loss Streak 10 | . . 10 To Critical Strikes . | . . . Average Slot Usage (%) 87 | . 96 71 Engine 12 | . 14 8 Treads 23 | . 28 14 Device 10 | . 12 7 Storage 12 | . 14 11 Processor 3 | . . 11 Energy Gun 1 | . 1 . Ballistic Gun 12 | . 14 9 Launcher 10 | . 11 8 Peak Build Rating 13 | 6 9 13 Average Rating 8 | 4 7 10 On Entrance 5 | . 6 9 Naked Turns . | . . . Heaviest Build 51 | 14 51 51 Greatest Support 40 | 40 40 40 Greatest Overweight (x) 15 | 2 1 15 Average Overweight (x) . | . . 1 Largest Inventory Capacity 20 | 8 20 20 Average Capacity 15 | 6 14 20 Most Carried 20 | 2 15 20 Average Carried 9 | . 6 17 Final Capacity 20 | 8 20 20 Final Carried 16 | . 15 16 Class Distribution -------------------- 100% | Mutant Dominant Class ---------------- Mutant | -10/Materials Mutant | -9/Materials Resources | -11 -10 -9 ----------- Run | Yrd Mat Mat Matter Collected 482 | 224 206 52 Remotely . | . . . Salvage Created 655 | . 347 308 Parts 42 | . 20 22 Haulers Intercepted 2 | . 1 1 Recyclers Shooed 1 | . 1 . Parts Field Recycled . | . . . Retrieved Matter . | . . . Parts Self-Destructed . | . . . Prevented . | . . . Kills | -11 -10 -9 ------- Run | Yrd Mat Mat Combat Hostiles Destroyed 13 | . 8 5 Guns 4 | . 2 2 AOE 9 | . 6 3 Classes Destroyed 10 | . 5 5 Worker 1 | . . 1 Builder 3 | . 1 2 Tunneler 1 | . 1 . Hauler 2 | . 1 1 Recycler 2 | . . 2 Watcher 2 | . 2 . Swarmer 3 | . . 3 Grunt 8 | . 8 . Duelist 1 | . . 1 Sentry 1 | . . 1 Best Kill Streak 5 | . 4 5 Combat Bots Only 4 | . 4 4 Max Kills in Single Turn 3 | . 2 3 Gunslinging . | . . . Exploded 2 | . 1 2 Melee . | . . . Uniques/NPCs Destroyed . | . . . Combat | -11 -10 -9 -------- Run | Yrd Mat Mat Hostile Shots Fired 149 | . 25 124 Missed 43 | . 7 36 Damage Taken 1529 | . 362 1167 Core 467 | . 65 402 Absorbed by Shields . | . . . Core Remaining (%) 87 | 100 74 . Volleys Fired 48 | . 29 19 Largest 2 | . 2 2 Hottest 70 | . 70 70 Shots Fired 74 | . 43 31 Gun 55 | . 32 23 Cannon . | . . . Launcher 19 | . 11 8 Special . | . . . Kinetic 48 | . 29 19 Thermal 7 | . 3 4 Explosive 19 | . 11 8 Electromagnetic . | . . . Robot Hit Streak 9 | . 7 9 Robot Miss Streak 3 | . 3 1 Penetration Max . | . . . Secondary Targets . | . . . Shots Hit Robots 55 | . 30 25 Core Hits 47 | . 29 18 Critical Kills . | . . . Critical Parts Destroyed . | . . . Critical Strikes . | . . . Melee Attacks . | . . . Impact . | . . . Slashing . | . . . Piercing . | . . . Sneak Attacks . | . . . Combat Hostiles . | . . . Follow-up Attacks . | . . . Damage Inflicted 1506 | . 806 700 Guns 482 | . 265 217 Cannons . | . . . Explosions 1024 | . 541 483 Melee . | . . . Ramming . | . . . Kinetic 408 | . 240 168 Thermal 74 | . 25 49 Explosive 1024 | . 541 483 Electromagnetic . | . . . Impact . | . . . Slashing . | . . . Piercing . | . . . Highest Corruption . | . . . Average Corruption . | . . . Corruption Purged . | . . . Corruption Blocked . | . . . Overload Shots . | . . . Overflow Damage 6 | . . 6 Projectiles . | . . . Explosions 6 | . . 6 Melee . | . . . Knockbacks . | . . . Impact . | . . . Kinetic . | . . . Secondary . | . . . Self-Inflicted Damage 187 | . 142 45 Shots 11 | . 9 2 Rammed . | . . . Targets Rammed . | . . . Kicked . | . . . Crushed . | . . . Highest Temperature 33 | . 33 20 Average Temperature 10 | . 19 5 Received Heat Transfer 414 | . 126 288 Siege Activations . | . . . Robots Corrupted . | . . . Combat Hostiles . | . . . Parts Fried . | . . . Impact Corruptions . | . . . Robots Melted . | . . . Combat Hostiles . | . . . Parts Melted . | . . . Heat Transferred 222 | . 74 148 Parts Sabotaged . | . . . Parts Stolen . | . . . Parts Stripped . | . . . Power Chain Reactions . | . . . Alert | -11 -10 -9 ------- Run | Yrd Mat Mat Peak Influence 352 | . 352 257 Initial 63 | . . 63 Average 145 | . 183 122 Maximum Alert Level 1 | . 1 1 Low Security (%) 54 | 100 36 73 Level 1 45 | . 63 26 Level 2 . | . . . Level 3 . | . . . Level 4 . | . . . Level 5 . | . . . High Security . | . . . Max Security . | . . . Squads Dispatched 1 | . . 1 Investigation . | . . . Extermination . | . . . Reinforcement 1 | . . 1 Assault . | . . . Garrison . | . . . Intercept . | . . . Searches Triggered . | . . . Construction Impeded . | . . . Haulers Reinforced . | . . . Active Scanning Responses . | . . . Cargo Convoy Interrupts . | . . . Stealth | -11 -10 -9 --------- Run | Yrd Mat Mat Distress Signals 5 | . 3 2 Communications Jammed . | . . . Distress Signals . | . . . Times Spotted 24 | . 12 12 Peak Tracking Total 10 | . 3 10 Tactical Retreats 1 | . . 1 Traps | -11 -10 -9 ------- Run | Yrd Mat Mat Traps Triggered . | . . . Indirectly . | . . . Trap Hack Attempts . | . . . Triggered . | . . . Disarmed . | . . . Reprogrammed . | . . . Reused . | . . . Traps Extracted . | . . . Installed . | . . . Triggered . | . . . Machines | -11 -10 -9 ---------- Run | Yrd Mat Mat Machines Disabled 3 | . 2 1 Max in Single Turn 1 | . 1 1 Machines Repaired . | . . . Machines Dismantled . | . . . Machines Sabotaged . | . . . Overloaded Fab Kills . | . . . Hacking | -11 -10 -9 --------- Run | Yrd Mat Mat Machines Accessed 3 | . 3 . Terminals 3 | . 3 . Fabricators . | . . . Repair Stations . | . . . Recycling Units . | . . . Scanalyzers . | . . . Garrison Access . | . . . Total Hacks 8 | . 8 . Successful 3 | . 3 . Failed 5 | . 5 . Catastrophic 1 | . 1 . Database Lockouts . | . . . Manual . | . . . Terminals 8 | . 8 . Fabricators . | . . . Repair Stations . | . . . Recycling Units . | . . . Scanalyzers . | . . . Garrison Access . | . . . Terminal Hacks 3 | . 3 . Emergency Access Points 1 | . 1 . Scanalyzer Index 1 | . 1 . Transport Status 1 | . 1 . Fabricator Hacks . | . . . Repair Station Hacks . | . . . Recycling Unit Hacks . | . . . Scanalyzer . | . . . Garrison Access Hacks . | . . . Unauthorized Hacks . | . . . Terminals . | . . . Fabricators . | . . . Repair Stations . | . . . Recycling Units . | . . . Scanalyzers . | . . . Garrison Access . | . . . Data Cores Recovered . | . . . Used . | . . . Hacking Detections 2 | . 2 . Full Trace Events . | . . . Feedback Events . | . . . Feedback Blocked . | . . . Robot Schematics Acquired . | . . . Robots Built . | . . . Authchips . | . . . Time . | . . . Total Robot Build Rating . | . . . Part Schematics Acquired . | . . . Parts Built . | . . . Authchips . | . . . Time . | . . . Total Part Build Rating . | . . . Parts Repaired . | . . . Time . | . . . Parts Recycled . | . . . Recycled Matter . | . . . Retrieved Matter . | . . . Retrieved Components . | . . . Parts Scanalyzed . | . . . Part Schematics Acquired . | . . . Parts Damaged . | . . . Bothacking | -11 -10 -9 ------------ Run | Yrd Mat Mat Used RIF Installer . | . . . Robots Hacked . | . . . Non-combat . | . . . Combat . | . . . Robot Hacks Applied . | . . . Relay Couplers Released . | . . . Fabnet Peak Effective % . | . . . Robots Rewired . | . . . Allies Hacked . | . . . Hacks Repelled . | . . . Allies | -11 -10 -9 -------- Run | Yrd Mat Mat Total Allies . | . . . Largest Group . | . . . Highest-Rated Group . | . . . Highest-Rated Ally . | . . . Total Orders . | . . . Ally Attacks . | . . . Total Damage . | . . . Kills . | . . . Allies Corrupted . | . . . Allies Melted . | . . . Intel | -11 -10 -9 ------- Run | Yrd Mat Mat Robot Analysis Total . | . . . Derelict Logs Recovered . | . . . Drone Launches . | . . . Drone Recoveries . | . . . Exploration | -11 -10 -9 ------------- Run | Yrd Mat Mat Turns Passed 720 | 71 421 228 Spaces Moved 268 | 46 166 56 Core 23 | 20 . 3 Treads 245 | 26 166 53 Legs . | . . . Wheels . | . . . Hover . | . . . Flight . | . . . Fastest Speed 50 | 50 160 240 Average Speed 202 | 130 197 276 Slowest Speed 800 | 160 240 800 Overloaded Moves . | . . . Propulsion Burnouts . | . . . Robots Hopped . | . . . Cave-ins Triggered . | . . . Exploration Rate (%) 19 | 4 42 13 Regions Visited 2 Branch Regions . Pre-discovered Areas . | . . . Known Exits Taken . | . . . Unknown Exits Taken 2 | 1 1 . Scrap Searched . | . . . Spaces Dug . | . . . Terrain Destroyed 103 | . 53 50 Melee . | . . . Projectile . | . . . AOE 103 | . 53 50 Terrain Rammed . | . . . Walls Destroyed . | . . . Machines Disabled . | . . . Actions | -11 -10 -9 --------- Run | Yrd Mat Mat Total 371 | 57 217 97 Wait 11 | . 1 10 Move 266 | 45 165 56 Hop . | . . . Pick Up 29 | 6 17 6 Fast Attach 1 | . . 1 Attach 13 | 6 2 5 Detach 1 | . 1 . Swap 1 | . 1 . Drop 1 | . 1 . Fire 48 | . 29 19 Melee . | . . . Ram . | . . . Kick . | . . . Crush . | . . . Escape Stasis . | . . . Rewire . | . . . Trap . | . . . Miscellaneous . | . . . Route ------- -11/Scrapyard -10/Materials -9/Materials History --------- Turn | Location | Event 4 | -11/Scrapyard | Discovered new exit (range 15) 72 | -11/Scrapyard | Entered Materials 318 | -10/Materials | Build established: Mutant 457 | -10/Materials | Discovered new exit (range 13) 493 | -10/Materials | Entered another Materials area 493 | -9/Materials | Evolved 2 slots: Power x1, Utility x1 692 | -9/Materials | Core integrity fell below 50% 713 | -9/Materials | Core integrity fell below 20% 721 | -9/Materials | Destroyed by S-10 Pest with Light Assault Rifle Last Messages --------------- 00693_ L-31 Rogue destroyed. 00694_ The unstable cave ceiling collapses. 00694_ Assault Rifle destroyed. 00695_ K-01 Serf collects debris. 00698_ Acquired 52 matter. 00698_ U-05 Engineer builds a Wall. 00699_ K-01 Serf collects debris. 00702_ U-05 Engineer lays Concrete. 00704_ K-01 Serf collects debris. 00705_ U-05 Engineer lays Concrete. 00708_ K-01 Serf collects debris. 00708_ Med. Armor Plating destroyed. 00709_ U-05 Engineer builds a Wall. 00711_ K-01 Serf collects debris. 00713_ U-05 Engineer builds a Wall. 00715_ U-05 Engineer lays Concrete. 00715_ K-01 Serf collects debris. 00716_ U-05 Engineer lays Concrete. 00717_ U-05 Engineer builds a Wall. 00719_ K-01 Serf collects debris. Map ----- +----------------------------------------------------+ | ?????????????????????????????????????????????????? | | ?????????????????????????????????????????????????? | | ?????????????????????????????????????????????????? | | ?????????????????????????????????????????????????? | | ?????????????????????????????????????????????????? | | ?????????????????????????????????????????????????? | | ?????????????????????????????????????????????????? | | ?????????????????????????????????????????????????? | | ?????????????????????????????????????????????????? | | ?????????????????????????????????????????????????? | | ?????????????? ????????????????????????????????? | | ?????????????? ????????????????????????????????? | | ????????????? ????????????????????????????????? | | ?????????????# #???????????????????????????????? | | ?????????????# #???????????????????????????????? | | ?????????????# #????????????????!??????????????? | | ?????????????# #???????????????"???????????????? | | ?????????????# #?????????????? ????????????????? | | ?????????????# #??#########?? #????????????????? | | ?????????????# #??? #? a###??????????????? | | ?????????????# #??? + ???????????? | | ?????????????# #???? #^ ???????????? | | ????????????## #????? ^ ??????????? | | ????????????# #?##### # ^ ^o ""???????????? | | ????????????## ## # # u ""???????????? | | ????????????# # # @k[g= % ""???????????? | | # ??????????# # # *% *s"T" ??????????? | | ???????????# =%* wY! """ ??????????????? | | ??????????# *# # ### * #####??????????????? | | ?########?## %## = = #?????????????????? | | ?# !!!!#??# !### " " #?????????????????? | | ?# ! !#??# ### """"""""" #?????????????????? | | ?# #??# #?# """ """ #?????????????????? | | ## #### #?# #?????????????????? | | #?# #?????????????????? | | #?# !#?????????????????? | | #?####+########?????????????????? | | # ########????? #????????????????????????? | | # #???????????? #????????????????????????? | | # """" #??????????????????????????????????????? | | # """" #??????????????????????????????????????? | | """" #??????????????????????????????????????? | | #??????????????????????????????????????? | | #??????????????????????????????????????? | | #/#########??????????????????????????????????????? | | ?????????????????????????????????????????????? | | ???????????????????????????????????????????? | | #??????????????????????????????????????????? | | #??????????????????????????????????????????? | | #??????????????????????????????????????????? | +----------------------------------------------------+ Best States ------------- Heat Dissipation 38 Energy Generation 10 Energy Capacity 250 Matter Stores 300 Matter Capacity 300 Sight Range 16 Terrain Scan Density 10 Armor Coverage 225 Evasion (%) 40 Targeting Accuracy 6 Recoil Reduction 2 Item Schematics ----------------- None Robot Schematics ------------------ None Fabricated ------------ Nothing Alien Tech Used ----------------- None Achievements -------------- None Challenges ------------ None Game ------ Seed BehemothBattleMaul Manual? 0 Play Time 00:10:01 Cumulative 36.1 hours Start 2024.09.22 @ 21:02:30 End 2024.09.22 @ 21:10:24 Sessions 1 Manual Loads 0 Difficulty Rogue Special Mode None Game No. 13 Rogue 4 Adventurer 9 Explorer 0 Win Type - Total 0 Types 0/0/0/0/0/0/0/0/0 Lore% 5 Gallery% 25 Achievement% 25 Wizard Run 0 Options --------- Layout 0 ASCII 0 Keyboard 0 Movement Mouse Keybinds 0 Fullscreen 1 Font 12/Smallcaps Map View 83x54 Zoom Use 0% Tactical HUD 1 Map Filters NONE Filters NONE Steam X RUN: ee27d398-75a9-4630-8ca0-e3181d62b562